[Event "*** Titled Tuesday 3|2 Blitz"]
[Site "Chess.com"]
[Date "2015.09.01"]
[Round "1"]
[White "ItalianMachine"]
[Black "jcibarra"]
[Result "0-1"]
[WhiteElo "2211"]
[BlackElo "2537"]
[TimeControl "180+2"]
[EndTime "11:11:15 PDT"]
[Termination "jcibarra won by resignation"]

1. e4 {[%clk 0:02:53]} 1... c5 {[%clk 0:03:00.7]} 2. Nc3 {[%clk 0:02:53.2]} 2...
a6 {[%clk 0:03:01.4]} 3. a4 {[%clk 0:02:52.4]} 3... Nc6 {[%clk 0:03:02]} 4. f4
{[%clk 0:02:53]} 4... e6 {[%clk 0:03:02.8]} 5. Nf3 {[%clk 0:02:50.7]} 5... d5
{[%clk 0:03:03.7]} 6. d3 {[%clk 0:02:49]} 6... g6 {[%clk 0:02:58.9]} 7. g3
{[%clk 0:02:47]} 7... Bg7 {[%clk 0:02:57.8]} 8. Bg2 {[%clk 0:02:47.8]} 8... Nge7
{[%clk 0:02:55.3]} 9. O-O {[%clk 0:02:48.5]} 9... O-O {[%clk 0:02:55.2]} 10. h3
{[%clk 0:02:49.4]} 10... c4 {[%clk 0:02:29.7]} 11. Kh2 {[%clk 0:02:48.5]} 11...
cxd3 {[%clk 0:02:29.8]} 12. cxd3 {[%clk 0:02:46]} 12... Qa5 {[%clk 0:02:17.5]}
13. Bd2 {[%clk 0:02:41.4]} 13... Qb6 {[%clk 0:02:18.3]} 14. a5 {[%clk
0:02:37.5]} 14... Qc7 {[%clk 0:02:10.3]} 15. Qe2 {[%clk 0:02:29.2]} 15... Rd8
{[%clk 0:02:07.1]} 16. Rfc1 {[%clk 0:02:26.9]} 16... Bd7 {[%clk 0:01:56.4]} 17.
Na4 {[%clk 0:02:26.9]} 17... Be8 {[%clk 0:01:55.3]} 18. Nb6 {[%clk 0:02:25.4]}
18... Bxb2 {[%clk 0:01:37.5]} 19. Nxa8 {[%clk 0:02:24.3]} 19... Rxa8 {[%clk
0:01:39.4]} 20. Rab1 {[%clk 0:02:23.9]} 20... Bxc1 {[%clk 0:01:39.8]} 21. Rxc1
{[%clk 0:02:24.7]} 21... Qd8 {[%clk 0:01:37.7]} 22. Bc3 {[%clk 0:02:24.9]} 22...
Nxa5 {[%clk 0:01:29.5]} 23. Bf6 {[%clk 0:02:19.6]} 23... Nac6 {[%clk 0:01:23.2]}
24. Qb2 {[%clk 0:02:19.6]} 24... Qd7 {[%clk 0:01:15.2]} 25. h4 {[%clk
0:02:09.9]} 25... Rc8 {[%clk 0:01:08.3]} 26. h5 {[%clk 0:02:08.8]} 26... gxh5
{[%clk 0:00:57.5]} 27. Bh8 {[%clk 0:01:56.3]} 27... d4 {[%clk 0:00:57.3]} 28.
Bf6 {[%clk 0:01:48.3]} 28... Ng6 {[%clk 0:00:53]} 29. Nxd4 {[%clk 0:01:43.4]}
29... Nxd4 {[%clk 0:00:53.5]} 30. Rxc8 {[%clk 0:01:44.4]} 30... Qxc8 {[%clk
0:00:54.5]} 31. Qxd4 {[%clk 0:01:45.1]} 31... Qd7 {[%clk 0:00:54.2]} 32. Qc3
{[%clk 0:01:45.6]} 32... Qc6 {[%clk 0:00:55.1]} 33. Qa1 {[%clk 0:01:46.4]} 33...
Qa4 {[%clk 0:00:44.9]} 34. Qc3 {[%clk 0:01:43.9]} 34... Qc6 {[%clk 0:00:45.3]}
35. Qb2 {[%clk 0:01:44.6]} 35... h4 {[%clk 0:00:44.2]} 36. gxh4 {[%clk
0:01:26.7]} 36... e5 {[%clk 0:00:32.7]} 37. Bxe5 {[%clk 0:01:24.8]} 37... Nxh4
{[%clk 0:00:33.3]} 38. f5 {[%clk 0:01:20.5]} 38... Qh6 {[%clk 0:00:29]} 39. Kg1
{[%clk 0:00:55.8]} 39... Qe3+ {[%clk 0:00:29]} 40. Kh2 {[%clk 0:00:56.2]} 40...
Qg5 {[%clk 0:00:22.2]} 41. Bg3 {[%clk 0:00:55.7]} 41... Nxg2 {[%clk 0:00:22.7]}
42. Kxg2 {[%clk 0:00:55.9]} 42... h5 {[%clk 0:00:20.6]} 43. Kh2 {[%clk
0:00:33.7]} 43... h4 {[%clk 0:00:20.3]} 44. Bb8 {[%clk 0:00:31.2]} 44... Bb5
{[%clk 0:00:21.6]} 45. Qe5 {[%clk 0:00:26.7]} 45... Qd2+ {[%clk 0:00:17]} 46.
Kg1 {[%clk 0:00:21.5]} 46... Qe1+ {[%clk 0:00:17.1]} 47. Kh2 {[%clk 0:00:21.9]}
47... Qe2+ {[%clk 0:00:17.7]} 48. Kg1 {[%clk 0:00:21.4]} 48... Qxd3 {[%clk
0:00:18.1]} 49. Qf4 {[%clk 0:00:20.6]} 49... Qd1+ {[%clk 0:00:16.7]} 50. Kh2
{[%clk 0:00:21.5]} 50... Qe2+ {[%clk 0:00:17.9]} 51. Kh3 {[%clk 0:00:22.8]}
51... Qf1+ {[%clk 0:00:16.7]} 52. Kxh4 {[%clk 0:00:23.5]} 52... Qxf4+ {[%clk
0:00:16.6]} 53. Bxf4 {[%clk 0:00:25.4]} 53... Bd3 {[%clk 0:00:18.5]} 54. Kg5
{[%clk 0:00:23.6]} 54... Bxe4 {[%clk 0:00:19.8]} 55. Bc7 {[%clk 0:00:24.9]}
55... Kf8 {[%clk 0:00:20.4]} 56. f6 {[%clk 0:00:25.9]} 56... Ke8 {[%clk
0:00:21.4]} 57. Kf4 {[%clk 0:00:27.8]} 57... Kd7 {[%clk 0:00:22.3]} 58. Ba5
{[%clk 0:00:29.7]} 58... Bc2 {[%clk 0:00:22.2]} 59. Ke5 {[%clk 0:00:31.6]} 59...
Kc6 {[%clk 0:00:23]} 60. Kd4 {[%clk 0:00:32.9]} 60... Kb5 {[%clk 0:00:24]} 61.
Bd8 {[%clk 0:00:34.4]} 61... Kb4 {[%clk 0:00:21.7]} 62. Be7+ {[%clk 0:00:34.3]}
62... Kb5 {[%clk 0:00:23.1]} 63. Kc3 {[%clk 0:00:35.2]} 63... Bf5 {[%clk
0:00:24.8]} 64. Bf8 {[%clk 0:00:35.3]} 64... Be6 {[%clk 0:00:26.7]} 65. Kb2
{[%clk 0:00:36.2]} 65... Ka4 {[%clk 0:00:27.6]} 66. Be7 {[%clk 0:00:36.1]} 66...
b5 {[%clk 0:00:28.9]} 67. Bf8 {[%clk 0:00:36.7]} 67... a5 {[%clk 0:00:30.4]} 68.
Be7 {[%clk 0:00:37.4]} 68... b4 {[%clk 0:00:31.9]} 69. Bf8 {[%clk 0:00:38.1]}
69... Kb5 {[%clk 0:00:33.3]} 70. Be7 {[%clk 0:00:39]} 70... a4 {[%clk
0:00:34.8]} 71. Kc2 {[%clk 0:00:39.4]} 71... a3 {[%clk 0:00:35.6]} 72. Kb1
{[%clk 0:00:40.2]} 72... Ka4 {[%clk 0:00:36.5]} 73. Bc5 {[%clk 0:00:40.1]} 73...
b3 {[%clk 0:00:36.6]} 74. Bd4 {[%clk 0:00:40.9]} 74... Bf5+ {[%clk 0:00:36.5]}
75. Ka1 {[%clk 0:00:40.9]} 75... Kb4 {[%clk 0:00:36.7]} 76. Be5 {[%clk
0:00:40.5]} 76... b2+ {[%clk 0:00:36.6]} 77. Bxb2 {[%clk 0:00:40.7]} 77... axb2+
{[%clk 0:00:38.5]} 78. Kxb2 {[%clk 0:00:42.6]} 0-1

[Event "*** Titled Tuesday 3|2 Blitz"]
[Site "Chess.com"]
[Date "2015.09.01"]
[Round "1"]
[White "Boryboy"]
[Black "Fh2411"]
[Result "0-1"]
[WhiteElo "2475"]
[BlackElo "2186"]
[TimeControl "180+2"]
[EndTime "11:12:05 PDT"]
[Termination "Fh2411 won by resignation"]

1. d4 {[%clk 0:03:01.3]} 1... d5 {[%clk 0:03:00.7]} 2. Nf3 {[%clk 0:03:02.3]}
2... c6 {[%clk 0:03:02.1]} 3. c4 {[%clk 0:03:01.9]} 3... Nf6 {[%clk 0:03:02]} 4.
e3 {[%clk 0:03:03]} 4... Bg4 {[%clk 0:03:01.2]} 5. Qb3 {[%clk 0:02:58]} 5... Qb6
{[%clk 0:02:59.8]} 6. Nc3 {[%clk 0:02:58.5]} 6... e6 {[%clk 0:02:59.6]} 7. Nh4
{[%clk 0:02:58.4]} 7... Bh5 {[%clk 0:02:57.1]} 8. h3 {[%clk 0:02:58.8]} 8... g5
{[%clk 0:02:50.9]} 9. Nf3 {[%clk 0:02:59.6]} 9... h6 {[%clk 0:02:50.4]} 10. Ne5
{[%clk 0:02:58.9]} 10... Nbd7 {[%clk 0:02:50.9]} 11. g4 {[%clk 0:02:59.9]} 11...
Qxb3 {[%clk 0:02:47.7]} 12. axb3 {[%clk 0:03:00.6]} 12... Bg6 {[%clk 0:02:48.7]}
13. Nxg6 {[%clk 0:03:01.8]} 13... fxg6 {[%clk 0:02:49.7]} 14. Bd3 {[%clk
0:03:03.3]} 14... Kf7 {[%clk 0:02:49.4]} 15. e4 {[%clk 0:02:52.4]} 15... dxe4
{[%clk 0:02:40.5]} 16. Nxe4 {[%clk 0:02:51]} 16... Nxe4 {[%clk 0:02:41.4]} 17.
Bxe4 {[%clk 0:02:52.9]} 17... Nf6 {[%clk 0:02:42.4]} 18. Bf3 {[%clk 0:02:53.4]}
18... Bb4+ {[%clk 0:02:41.7]} 19. Kf1 {[%clk 0:02:54.3]} 19... a6 {[%clk
0:02:33.9]} 20. Be3 {[%clk 0:02:54.9]} 20... Rad8 {[%clk 0:02:32.7]} 21. Kg2
{[%clk 0:02:55.6]} 21... Bd6 {[%clk 0:02:29.3]} 22. Rhd1 {[%clk 0:02:53.3]}
22... Bf4 {[%clk 0:02:29.8]} 23. Ra5 {[%clk 0:02:52.6]} 23... Rd7 {[%clk
0:02:20.1]} 24. b4 {[%clk 0:02:53.8]} 24... Rhd8 {[%clk 0:02:16.5]} 25. b5
{[%clk 0:02:49.3]} 25... axb5 {[%clk 0:01:51.5]} 26. cxb5 {[%clk 0:02:50.2]}
26... c5 {[%clk 0:01:27.8]} 27. dxc5 {[%clk 0:02:37.3]} 27... Rxd1 {[%clk
0:01:21.9]} 28. Bxd1 {[%clk 0:02:36.3]} 28... Bxe3 {[%clk 0:01:22.6]} 29. fxe3
{[%clk 0:02:24.4]} 29... Rxd1 {[%clk 0:01:23.1]} 30. Ra7 {[%clk 0:02:25.6]}
30... Rd7 {[%clk 0:01:23.2]} 31. Kf3 {[%clk 0:02:25.5]} 31... Ke7 {[%clk
0:01:24.1]} 32. b6 {[%clk 0:02:24.5]} 32... Nd5 {[%clk 0:01:21]} 33. Ra8 {[%clk
0:02:21.3]} 33... Nb4 {[%clk 0:01:18.8]} 34. Rh8 {[%clk 0:02:17.9]} 34... Kf6
{[%clk 0:01:19.6]} 35. Rc8 {[%clk 0:02:13]} 35... Na6 {[%clk 0:01:11.6]} 36. c6
{[%clk 0:01:54.2]} 36... bxc6 {[%clk 0:01:12]} 37. Rxc6 {[%clk 0:01:54.3]} 37...
Rb7 {[%clk 0:01:12.3]} 38. Ke4 {[%clk 0:01:52.1]} 38... Nb4 {[%clk 0:01:08.6]}
39. Rc8 {[%clk 0:01:50.8]} 39... Rxb6 {[%clk 0:01:08.2]} 40. Rf8+ {[%clk
0:01:52.3]} 40... Kg7 {[%clk 0:01:07.8]} 41. Re8 {[%clk 0:01:52.9]} 41... Kf7
{[%clk 0:01:08.4]} 42. Rh8 {[%clk 0:01:53.5]} 42... Nd5 {[%clk 0:01:08.1]} 43.
Ke5 {[%clk 0:01:54]} 43... Nf6 {[%clk 0:01:05.3]} 44. Ra8 {[%clk 0:01:52.6]}
44... Rb5+ {[%clk 0:01:05.7]} 45. Kd4 {[%clk 0:01:53]} 45... e5+ {[%clk
0:00:55.2]} 46. Kc3 {[%clk 0:01:53.7]} 46... Ne4+ {[%clk 0:00:55.1]} 47. Kd3
{[%clk 0:01:54.6]} 47... Nf2+ {[%clk 0:00:53.2]} 48. Kc3 {[%clk 0:01:55.9]}
48... Nxh3 {[%clk 0:00:53.7]} 49. b4 {[%clk 0:01:57.5]} 49... h5 {[%clk
0:00:51]} 50. gxh5 {[%clk 0:01:57.8]} 50... gxh5 {[%clk 0:00:51.4]} 51. Kc4
{[%clk 0:01:59.2]} 51... Rb7 {[%clk 0:00:52.2]} 52. b5 {[%clk 0:01:59.4]} 52...
Ke6 {[%clk 0:00:46.1]} 53. Kc5 {[%clk 0:01:57.7]} 53... Kd7 {[%clk 0:00:47.7]}
54. b6 {[%clk 0:01:58.2]} 54... Nf2 {[%clk 0:00:43.8]} 55. Ra7 {[%clk
0:01:52.7]} 55... Ne4+ {[%clk 0:00:39.5]} 56. Kd5 {[%clk 0:01:47.8]} 56... Nc3+
{[%clk 0:00:38]} 57. Kxe5 {[%clk 0:01:39]} 57... Kc6 {[%clk 0:00:39]} 58. Kf5
{[%clk 0:01:35]} 58... h4 {[%clk 0:00:29.4]} 59. Ra3 {[%clk 0:01:33.5]} 59...
Nb5 {[%clk 0:00:22.5]} 60. Ra1 {[%clk 0:01:31]} 60... Rg7 {[%clk 0:00:22.4]} 61.
Rc1+ {[%clk 0:01:28.2]} 61... Kxb6 {[%clk 0:00:23.1]} 62. Kg4 {[%clk 0:01:29.9]}
62... Nd6 {[%clk 0:00:21.2]} 63. Rc2 {[%clk 0:01:29.2]} 63... Ne4 {[%clk
0:00:21.2]} 64. Rc4 {[%clk 0:01:28.1]} 64... Ng3 {[%clk 0:00:22.2]} 65. Rc1
{[%clk 0:01:27.7]} 65... Rc7 {[%clk 0:00:23]} 66. Rb1+ {[%clk 0:01:28.1]} 66...
Kc6 {[%clk 0:00:22.6]} 67. Kxg5 {[%clk 0:01:29.5]} 67... Rh7 {[%clk 0:00:23.5]}
68. Kg4 {[%clk 0:01:30.4]} 68... Ne4 {[%clk 0:00:23]} 69. Kf4 {[%clk 0:01:29.8]}
69... Nf2 {[%clk 0:00:20.5]} 70. Kf3 {[%clk 0:01:28.9]} 70... Nd3 {[%clk
0:00:22.1]} 71. Rh1 {[%clk 0:01:26.3]} 71... Kd5 {[%clk 0:00:21]} 72. Rd1 {[%clk
0:01:17.5]} 72... Kc4 {[%clk 0:00:21.7]} 73. Rh1 {[%clk 0:01:19.1]} 73... Kc3
{[%clk 0:00:18.5]} 74. Rh2 {[%clk 0:01:18.4]} 74... Kc4 {[%clk 0:00:16.6]} 75.
Kg4 {[%clk 0:01:19.3]} 75... Ne5+ {[%clk 0:00:16.7]} 76. Kf4 {[%clk 0:01:19.1]}
76... Kd5 {[%clk 0:00:18.2]} 77. Rh1 {[%clk 0:01:15.3]} 77... Ke6 {[%clk
0:00:17.4]} 78. Kg5 {[%clk 0:01:14.1]} 78... h3 {[%clk 0:00:15.3]} 79. Kf4
{[%clk 0:01:15.5]} 79... Rf7+ {[%clk 0:00:10.4]} 80. Kg3 {[%clk 0:01:16.5]}
80... Rf3+ {[%clk 0:00:11.8]} 81. Kh4 {[%clk 0:01:17.7]} 81... Ng6+ {[%clk
0:00:12]} 82. Kg4 {[%clk 0:01:16.3]} 82... Ne5+ {[%clk 0:00:13.9]} 83. Kh4
{[%clk 0:01:17.6]} 83... Kf5 {[%clk 0:00:15.8]} 84. e4+ {[%clk 0:01:08.5]} 84...
Kf4 {[%clk 0:00:17]} 85. Ra1 {[%clk 0:01:01.6]} 85... h2 {[%clk 0:00:17.8]} 86.
Rh1 {[%clk 0:01:02.7]} 86... Rf2 {[%clk 0:00:17.5]} 87. Kh3 {[%clk 0:01:02.9]}
87... Ng4 {[%clk 0:00:17.6]} 88. e5 {[%clk 0:01:02.5]} 88... Rf3+ {[%clk
0:00:18.7]} 89. Kg2 {[%clk 0:01:03.1]} 89... Rg3+ {[%clk 0:00:19.7]} 90. Kf1
{[%clk 0:01:00.9]} 90... Kxe5 {[%clk 0:00:20.9]} 91. Ke2 {[%clk 0:01:02.3]}
91... Kf4 {[%clk 0:00:22.1]} 92. Kf1 {[%clk 0:01:03.6]} 92... Kf3 {[%clk
0:00:21.4]} 93. Ke1 {[%clk 0:01:03.6]} 93... Rg1+ {[%clk 0:00:22.4]} 0-1

[Event "*** Titled Tuesday 3|2 Blitz"]
[Site "Chess.com"]
[Date "2015.09.01"]
[Round "2"]
[White "armago"]
[Black "ItalianMachine"]
[Result "0-1"]
[WhiteElo "2047"]
[BlackElo "2216"]
[TimeControl "180+2"]
[EndTime "11:16:34 PDT"]
[Termination "ItalianMachine won by resignation"]

1. d4 {[%clk 0:03:01.1]} 1... Nf6 {[%clk 0:02:56.2]} 2. c4 {[%clk 0:03:01.4]}
2... g6 {[%clk 0:02:56.9]} 3. Nc3 {[%clk 0:03:02.2]} 3... Bg7 {[%clk 0:02:58.4]}
4. e4 {[%clk 0:03:02.9]} 4... d6 {[%clk 0:02:59.3]} 5. Bd3 {[%clk 0:03:04.4]}
5... O-O {[%clk 0:02:59.5]} 6. Nge2 {[%clk 0:03:05.7]} 6... e5 {[%clk
0:03:00.7]} 7. d5 {[%clk 0:03:05.4]} 7... Na6 {[%clk 0:02:58.3]} 8. O-O {[%clk
0:03:06]} 8... Nc5 {[%clk 0:02:59.1]} 9. Bc2 {[%clk 0:03:07.6]} 9... a5 {[%clk
0:03:00.4]} 10. b3 {[%clk 0:03:09.1]} 10... Bd7 {[%clk 0:02:59.5]} 11. Rb1
{[%clk 0:03:10.5]} 11... b6 {[%clk 0:02:58.3]} 12. f3 {[%clk 0:03:11.1]} 12...
Nh5 {[%clk 0:02:55.6]} 13. a3 {[%clk 0:03:12.1]} 13... f5 {[%clk 0:02:55.1]} 14.
exf5 {[%clk 0:03:13.2]} 14... gxf5 {[%clk 0:02:55.9]} 15. b4 {[%clk 0:03:14.3]}
15... axb4 {[%clk 0:02:56]} 16. axb4 {[%clk 0:03:15.9]} 16... Na6 {[%clk
0:02:56.3]} 17. Be3 {[%clk 0:03:14.4]} 17... Qh4 {[%clk 0:02:54.6]} 18. Qd3
{[%clk 0:02:52.5]} 18... b5 {[%clk 0:02:47.2]} 19. cxb5 {[%clk 0:02:47.5]} 19...
Nxb4 {[%clk 0:02:47]} 20. Qd2 {[%clk 0:02:39.4]} 20... Nxc2 {[%clk 0:02:47.3]}
21. Qxc2 {[%clk 0:02:37.8]} 21... Nf6 {[%clk 0:02:14.6]} 22. Qd2 {[%clk
0:02:34.3]} 22... h6 {[%clk 0:02:12.4]} 23. Rfc1 {[%clk 0:02:33.1]} 23... Kh8
{[%clk 0:02:09.6]} 24. Kh1 {[%clk 0:02:32.5]} 24... Rg8 {[%clk 0:02:10]} 25. Ng3
{[%clk 0:02:31.7]} 25... f4 {[%clk 0:02:10]} 26. Bf2 {[%clk 0:02:27.8]} 26...
fxg3 {[%clk 0:02:09.6]} 27. Bxg3 {[%clk 0:02:28.7]} 27... Qg5 {[%clk 0:02:10.7]}
28. Qe2 {[%clk 0:02:28.5]} 28... Nh5 {[%clk 0:02:11.4]} 29. Bf2 {[%clk
0:02:27.5]} 29... Nf4 {[%clk 0:02:10.8]} 30. Qf1 {[%clk 0:02:29]} 30... Bf5
{[%clk 0:02:11]} 31. Rb2 {[%clk 0:02:28.9]} 31... Nd3 {[%clk 0:02:11]} 0-1

[Event "*** Titled Tuesday 3|2 Blitz"]
[Site "Chess.com"]
[Date "2015.09.01"]
[Round "2"]
[White "xdb"]
[Black "ArnaudovP"]
[Result "0-1"]
[WhiteElo "2097"]
[BlackElo "2354"]
[TimeControl "180+2"]
[EndTime "11:17:16 PDT"]
[Termination "ArnaudovP won by resignation"]

1. e4 {[%clk 0:03:01.9]} 1... e5 {[%clk 0:02:58.5]} 2. Nf3 {[%clk 0:03:01.6]}
2... Nc6 {[%clk 0:02:53.2]} 3. Nc3 {[%clk 0:03:00.9]} 3... Nf6 {[%clk
0:02:52.9]} 4. d4 {[%clk 0:03:01.9]} 4... exd4 {[%clk 0:02:52.9]} 5. Nxd4 {[%clk
0:03:03.8]} 5... Bc5 {[%clk 0:02:54.1]} 6. Nxc6 {[%clk 0:02:57.2]} 6... bxc6
{[%clk 0:02:53.8]} 7. Bd3 {[%clk 0:02:55.9]} 7... O-O {[%clk 0:02:53.2]} 8. O-O
{[%clk 0:02:55.7]} 8... d5 {[%clk 0:02:54.1]} 9. exd5 {[%clk 0:02:56.1]} 9...
cxd5 {[%clk 0:02:52.2]} 10. h3 {[%clk 0:02:49.4]} 10... h6 {[%clk 0:02:49.3]}
11. Qf3 {[%clk 0:02:49.5]} 11... Rb8 {[%clk 0:02:47]} 12. b3 {[%clk 0:02:40.8]}
12... Bd4 {[%clk 0:02:45.1]} 13. Bb2 {[%clk 0:02:39.9]} 13... c5 {[%clk
0:02:46.3]} 14. Rad1 {[%clk 0:02:38.2]} 14... Qa5 {[%clk 0:02:44.3]} 15. Rfe1
{[%clk 0:01:55.5]} 15... Be6 {[%clk 0:02:39.5]} 16. Bf1 {[%clk 0:01:46.9]} 16...
Ne4 {[%clk 0:02:36.8]} 17. Rd3 {[%clk 0:00:53.8]} 17... Bxf2+ {[%clk 0:02:33.5]}
18. Kh1 {[%clk 0:00:49.9]} 18... Bxe1 {[%clk 0:02:34]} 19. Nxe4 {[%clk
0:00:50.8]} 19... dxe4 {[%clk 0:02:34]} 20. Qxe4 {[%clk 0:00:51.6]} 20... c4
{[%clk 0:02:35.3]} 21. Re3 {[%clk 0:00:43]} 21... c3 {[%clk 0:02:34.8]} 22. Bc1
{[%clk 0:00:38.3]} 22... Bd2 {[%clk 0:02:35.8]} 23. Bd3 {[%clk 0:00:32.5]} 23...
Bf5 {[%clk 0:02:32.4]} 0-1

[Event "*** Titled Tuesday 3|2 Blitz"]
[Site "Chess.com"]
[Date "2015.09.01"]
[Round "2"]
[White "AleksandrNevski"]
[Black "Keranke"]
[Result "0-1"]
[WhiteElo "2308"]
[BlackElo "2517"]
[TimeControl "180+2"]
[EndTime "11:18:14 PDT"]
[Termination "Keranke won by resignation"]

1. c4 {[%clk 0:03:01.9]} 1... g6 {[%clk 0:02:58.9]} 2. g3 {[%clk 0:03:02.7]}
2... Bg7 {[%clk 0:03:00.3]} 3. Bg2 {[%clk 0:03:04.6]} 3... Nf6 {[%clk
0:03:01.3]} 4. Nc3 {[%clk 0:03:05.1]} 4... O-O {[%clk 0:03:03.2]} 5. d3 {[%clk
0:03:06.6]} 5... c6 {[%clk 0:03:03.3]} 6. Bg5 {[%clk 0:03:02]} 6... d5 {[%clk
0:03:02.8]} 7. cxd5 {[%clk 0:02:52]} 7... cxd5 {[%clk 0:03:04.7]} 8. Qd2 {[%clk
0:02:53.4]} 8... d4 {[%clk 0:03:01.2]} 9. Bxf6 {[%clk 0:02:50.1]} 9... exf6
{[%clk 0:02:56.6]} 10. Nd5 {[%clk 0:02:49.2]} 10... Nc6 {[%clk 0:02:56.5]} 11.
h4 {[%clk 0:02:47.5]} 11... Re8 {[%clk 0:02:53.8]} 12. Kf1 {[%clk 0:02:30.3]}
12... Bg4 {[%clk 0:02:45.9]} 13. Re1 {[%clk 0:02:25.7]} 13... Rc8 {[%clk
0:02:42.6]} 14. Nh3 {[%clk 0:02:23.5]} 14... Ne5 {[%clk 0:02:24.1]} 15. Nhf4
{[%clk 0:02:20.9]} 15... Rc5 {[%clk 0:02:17.9]} 16. b4 {[%clk 0:02:16]} 16...
Rc8 {[%clk 0:02:18.4]} 17. h5 {[%clk 0:02:16.3]} 17... Qd6 {[%clk 0:01:45.5]}
18. hxg6 {[%clk 0:02:09.2]} 18... hxg6 {[%clk 0:01:34.1]} 19. b5 {[%clk
0:01:48.1]} 19... Rc5 {[%clk 0:01:32.3]} 20. Qb4 {[%clk 0:01:48.2]} 20... g5
{[%clk 0:01:29.3]} 21. Qxd4 {[%clk 0:01:36.2]} 21... gxf4 {[%clk 0:01:24.9]} 22.
gxf4 {[%clk 0:01:37.5]} 22... Nf3 {[%clk 0:01:09.8]} 23. exf3 {[%clk 0:01:25.7]}
23... Rxe1+ {[%clk 0:01:10.2]} 24. Kxe1 {[%clk 0:01:25.6]} 24... Rxd5 {[%clk
0:01:11.6]} 25. Qe4 {[%clk 0:01:20.9]} 25... Bd7 {[%clk 0:01:05.1]} 0-1

[Event "*** Titled Tuesday 3|2 Blitz"]
[Site "Chess.com"]
[Date "2015.09.01"]
[Round "2"]
[White "gumersindo"]
[Black "Fawolizzo"]
[Result "0-1"]
[WhiteElo "2037"]
[BlackElo "1965"]
[TimeControl "180+2"]
[EndTime "11:19:04 PDT"]
[Termination "Fawolizzo won by resignation"]

1. d4 {[%clk 0:02:55.3]} 1... Nf6 {[%clk 0:02:59.4]} 2. c4 {[%clk 0:02:55.5]}
2... e6 {[%clk 0:03:00.4]} 3. Nc3 {[%clk 0:02:55.3]} 3... Bb4 {[%clk 0:03:01.2]}
4. Qc2 {[%clk 0:02:55]} 4... b6 {[%clk 0:03:01.3]} 5. a3 {[%clk 0:02:55.3]} 5...
Bxc3+ {[%clk 0:03:01.2]} 6. Qxc3 {[%clk 0:02:56.8]} 6... Bb7 {[%clk 0:03:02.3]}
7. f3 {[%clk 0:02:54.9]} 7... d5 {[%clk 0:03:02.1]} 8. e3 {[%clk 0:02:53.3]}
8... O-O {[%clk 0:03:02.7]} 9. Bd3 {[%clk 0:02:53.4]} 9... Nbd7 {[%clk
0:03:03.7]} 10. Ne2 {[%clk 0:02:53.5]} 10... c5 {[%clk 0:03:04.7]} 11. b3 {[%clk
0:02:53.6]} 11... cxd4 {[%clk 0:03:03.1]} 12. exd4 {[%clk 0:02:52.3]} 12... Rc8
{[%clk 0:03:03.7]} 13. Bf4 {[%clk 0:02:50.1]} 13... Ba6 {[%clk 0:02:56.6]} 14.
O-O {[%clk 0:02:37.5]} 14... Nh5 {[%clk 0:02:48.5]} 15. Bd6 {[%clk 0:02:30.5]}
15... Re8 {[%clk 0:02:48.3]} 16. Rac1 {[%clk 0:02:29.3]} 16... Qh4 {[%clk
0:02:45.5]} 17. c5 {[%clk 0:02:25.5]} 17... Bxd3 {[%clk 0:02:40]} 18. Qxd3
{[%clk 0:02:25.3]} 18... bxc5 {[%clk 0:02:41]} 19. dxc5 {[%clk 0:02:25]} 19...
Rc6 {[%clk 0:02:10.7]} 20. b4 {[%clk 0:02:23.5]} 20... a6 {[%clk 0:02:11.2]} 21.
Nd4 {[%clk 0:02:23.3]} 21... Rcc8 {[%clk 0:02:08.3]} 22. Rfd1 {[%clk 0:02:17]}
22... Nf4 {[%clk 0:02:07.5]} 23. Qd2 {[%clk 0:02:14.8]} 23... Ng6 {[%clk
0:02:03.8]} 24. Bg3 {[%clk 0:02:07.5]} 24... Qf6 {[%clk 0:01:57.5]} 25. a4
{[%clk 0:02:05.2]} 25... e5 {[%clk 0:01:58]} 26. Nb3 {[%clk 0:02:04.5]} 26... d4
{[%clk 0:01:56.1]} 27. b5 {[%clk 0:01:59.7]} 27... axb5 {[%clk 0:01:55.2]} 28.
axb5 {[%clk 0:02:00]} 28... h5 {[%clk 0:01:56.7]} 29. c6 {[%clk 0:02:00.3]}
29... Nb6 {[%clk 0:01:57.6]} 30. Qa5 {[%clk 0:02:00.8]} 30... h4 {[%clk
0:01:54.7]} 31. Bf2 {[%clk 0:01:58.8]} 31... Nd5 {[%clk 0:01:54.3]} 32. Nc5
{[%clk 0:01:57]} 32... Ngf4 {[%clk 0:01:47.7]} 33. Ne4 {[%clk 0:01:54.8]} 33...
Qg6 {[%clk 0:01:45.4]} 34. g3 {[%clk 0:01:55]} 34... hxg3 {[%clk 0:01:43.6]} 35.
hxg3 {[%clk 0:01:55.1]} 35... Ne2+ {[%clk 0:01:44.1]} 36. Kf1 {[%clk 0:01:54.4]}
36... Nxc1 {[%clk 0:01:44.8]} 37. Rxc1 {[%clk 0:01:55]} 37... Ne3+ {[%clk
0:01:45.8]} 38. Bxe3 {[%clk 0:01:54.6]} 38... dxe3 {[%clk 0:01:46.7]} 39. Ke2
{[%clk 0:01:52.5]} 39... f5 {[%clk 0:01:44.9]} 40. Nc5 {[%clk 0:01:47]} 40...
Qxg3 {[%clk 0:01:43]} 41. Qa2+ {[%clk 0:01:41.3]} 41... Kh7 {[%clk 0:01:42.5]}
42. Rh1+ {[%clk 0:01:40.2]} 42... Kg6 {[%clk 0:01:43.2]} 43. Qb1 {[%clk
0:01:37.8]} 43... Qf2+ {[%clk 0:01:42.1]} 44. Kd3 {[%clk 0:01:38.6]} 44... Qd2+
{[%clk 0:01:41.9]} 45. Kc4 {[%clk 0:01:37.5]} 45... Qd4+ {[%clk 0:01:41.8]} 46.
Kb3 {[%clk 0:01:37.2]} 46... Qxc5 {[%clk 0:01:42.9]} 47. Rg1+ {[%clk 0:01:34.2]}
47... Kf6 {[%clk 0:01:43.8]} 48. Qd3 {[%clk 0:01:33.2]} 48... Red8 {[%clk
0:01:41.4]} 49. Qe2 {[%clk 0:01:29.9]} 49... Rd2 {[%clk 0:01:40.8]} 50. Qc4
{[%clk 0:01:28.7]} 0-1

[Event "*** Titled Tuesday 3|2 Blitz"]
[Site "Chess.com"]
[Date "2015.09.01"]
[Round "2"]
[White "IMRosen"]
[Black "stefanodinn"]
[Result "0-1"]
[WhiteElo "2201"]
[BlackElo "2111"]
[TimeControl "180+2"]
[EndTime "11:19:09 PDT"]
[Termination "stefanodinn won on time"]

1. e4 {[%clk 0:02:57]} 1... c5 {[%clk 0:02:58.7]} 2. Nc3 {[%clk 0:02:54.9]} 2...
d6 {[%clk 0:02:59.4]} 3. f4 {[%clk 0:02:54]} 3... g6 {[%clk 0:02:58.5]} 4. Nf3
{[%clk 0:02:50.9]} 4... Bg7 {[%clk 0:02:58.9]} 5. Bc4 {[%clk 0:02:52.8]} 5... e6
{[%clk 0:02:54.8]} 6. O-O {[%clk 0:01:56.6]} 6... Ne7 {[%clk 0:02:54.3]} 7. Qe1
{[%clk 0:01:58.1]} 7... O-O {[%clk 0:02:52.6]} 8. d3 {[%clk 0:01:59.7]} 8...
Nbc6 {[%clk 0:02:52.6]} 9. f5 {[%clk 0:02:01.3]} 9... gxf5 {[%clk 0:02:50.1]}
10. Qh4 {[%clk 0:02:01.1]} 10... d5 {[%clk 0:02:16.9]} 11. Bb3 {[%clk
0:01:51.7]} 11... fxe4 {[%clk 0:02:17.3]} 12. dxe4 {[%clk 0:01:48.6]} 12... c4
{[%clk 0:02:17.6]} 13. Ba4 {[%clk 0:01:45.5]} 13... d4 {[%clk 0:01:59.6]} 14.
Bh6 {[%clk 0:01:28.7]} 14... dxc3 {[%clk 0:01:34.6]} 15. Ng5 {[%clk 0:01:24]}
15... Bxh6 {[%clk 0:01:30.7]} 16. Qxh6 {[%clk 0:01:23.1]} 16... Qd4+ {[%clk
0:01:30.3]} 17. Kh1 {[%clk 0:01:16.6]} 17... Qg7 {[%clk 0:01:30.5]} 18. Qh4
{[%clk 0:01:15.6]} 18... f6 {[%clk 0:01:26.5]} 19. Nh3 {[%clk 0:01:11.3]} 19...
e5 {[%clk 0:01:22.3]} 20. Rf3 {[%clk 0:00:54.4]} 20... cxb2 {[%clk 0:01:14.4]}
21. Raf1 {[%clk 0:00:52.3]} 21... Bxh3 {[%clk 0:01:05.5]} 22. Qxh3 {[%clk
0:00:43.8]} 22... Ng6 {[%clk 0:00:58.1]} 0-1